bitfinex/quotes_SOLUSD_20251212
["timestamp","ask_amount","ask_price","bid_price","bid_amount"]
[1765550383845,8.80994492,139.3,139.29,0.2]
[1765550384142,16.68869581,139.3,139.29,0.2]
[1765550386051,15.98869581,139.3,139.29,0.2]
[1765550386683,16.68869581,139.3,139.29,0.2]
[1765550387166,16.97301895,139.3,139.29,0.2]
[1765550387472,9.09426806,139.3,139.29,0.2]
[1765550387651,7.86,139.3,139.29,0.2]
[1765550388473,7.86,139.3,139.29,0.92]
[1765550388474,8.00216157,139.3,139.29,0.92]
[1765550388652,7.86,139.3,139.29,13.35883508]
[1765550388846,7.86,139.3,139.29,20.53809264]
[1765550389248,7.86,139.3,139.29,0.2]
[1765550389756,8.14432314,139.3,139.29,0.2]
[1765550390160,8.81432314,139.3,139.29,0.2]
[1765550390380,37.24185403,139.3,139.29,0.2]
[1765550390881,24.80301895,139.3,139.29,0.2]
[1765550391470,24.13301895,139.3,139.29,0.2]
[1765550391669,23.99085738,139.3,139.29,0.2]
[1765550391886,23.99085738,139.3,139.26,0.2]
[1765550391887,8.95210649,139.29,139.26,0.2]
[1765550392074,21.53310314,139.27,139.26,0.2]
[1765550392249,29.39310314,139.27,139.26,0.2]
[1765550392447,9.09426806,139.26,139.22,0.2]
[1765550392648,0.28432314,139.23,139.22,0.2]
[1765550392848,7.86,139.23,139.22,12.63883508]
[1765550393151,16.66994492,139.23,139.22,12.63883508]
[1765550393350,16.66994492,139.23,139.22,0.2]
[1765550393840,16.95426806,139.23,139.22,0.2]
[1765550394463,24.13662818,139.23,139.22,0.2]
[1765550394658,16.95426806,139.23,139.22,0.2]
[1765550396183,24.13662818,139.23,139.22,0.2]
[1765550396387,24.80662818,139.23,139.22,0.2]
[1765550397258,37.24546326,139.23,139.22,0.2]
[1765550397758,9.09426806,139.22,139.21,0.2]
[1765550397957,22.20310314,139.22,139.21,0.2]
[1765550398466,29.38597916,139.22,139.21,0.2]
[1765550399854,29.99423528,139.22,139.21,0.2]
[1765550400060,42.43307036,139.22,139.21,0.2]
[1765550400287,22.14135926,139.18,139.09,7.84925286]
[1765550400463,0.14216157,139.13,139.09,13.09883508]
[1765550400680,0.28432314,139.1,139.06,0.66]
[1765550400989,0.28432314,139.1,139.0,25.05421649]
[1765550400990,8.80994492,139.08,139.04,7.19202635]
[1765550401186,8.80994492,139.08,139.06,12.43883508]
[1765550401578,8.80994492,139.08,139.06,0.66]
[1765550402350,0.28432314,139.07,139.04,0.66]
[1765550402575,8.80994492,139.05,139.04,12.43883508]
[1765550402780,8.80994492,139.05,139.03,0.66]
[1765550402954,8.80994492,139.05,139.03,13.09883508]
[1765550403156,8.80994492,139.05,139.04,12.43883508]
[1765550403361,7.85783458,139.13,139.04,20.29100999]
[1765550403601,16.81210649,139.12,139.08,12.43883508]
[1765550403759,17.48210649,139.12,139.07,13.09883508]
[1765550403962,8.95210649,139.1,139.07,13.09883508]
[1765550404179,0.28432314,139.07,139.03,0.66]
[1765550404355,8.80994492,139.05,139.03,13.09883508]
[1765550404566,8.80994492,139.05,139.04,12.43883508]
[1765550404770,8.80994492,139.05,139.03,13.09883508]
[1765550405290,8.80994492,139.05,139.04,12.43883508]
[1765550405471,7.86,139.06,139.04,20.29100999]
[1765550405663,7.86,139.06,139.05,13.09883508]
[1765550405864,7.86,139.06,139.05,15.53640779]
[1765550406480,7.86,139.06,139.05,8.34475012]
[1765550406785,18.63876552,139.14,139.05,15.53640779]
[1765550407083,23.87746738,139.13,139.08,7.68475012]
[1765550407258,0.14216157,139.12,139.06,0.66]
[1765550407457,0.14216157,139.12,139.08,7.68475012]
[1765550407658,0.28432314,139.12,139.08,7.68475012]
[1765550407962,7.33069123,139.12,139.09,7.68475012]
[1765550408264,18.63658386,139.15,139.1,7.68475012]
[1765550408612,16.68994492,139.14,139.1,7.68475012]
[1765550408784,17.35994492,139.14,139.1,7.68475012]
[1765550409089,24.5470528,139.14,139.1,7.68475012]
[1765550409276,0.81216157,139.13,139.1,7.68475012]
[1765550409460,0.95432314,139.13,139.1,7.68475012]
[1765550409666,0.28432314,139.13,139.1,7.68475012]
[1765550410076,8.80994492,139.14,139.12,7.68475012]
[1765550410291,7.88,139.13,139.12,8.34475012]
[1765550410880,18.63402081,139.17,139.12,8.34475012]
[1765550411222,16.68994492,139.16,139.14,7.68475012]
[1765550411391,0.14216157,139.15,139.14,7.68475012]
[1765550411714,0.28432314,139.15,139.14,7.68475012]
[1765550412507,23.87601983,139.16,139.14,7.68475012]
[1765550412508,16.68994492,139.16,139.14,7.68475012]
[1765550412673,7.18506951,139.18,139.15,7.68475012]
[1765550412872,8.80994492,139.2,139.17,7.68475012]
[1765550413181,7.88,139.19,139.18,0.66]
[1765550414174,7.88,139.19,139.15,7.846375]
[1765550414505,9.76426806,139.18,139.14,7.68475012]
[1765550414678,9.76426806,139.18,139.13,7.68475012]
[1765550415072,9.76426806,139.18,139.12,8.34475012]
[1765550415073,0.28432314,139.15,139.12,8.34475012]
[1765550415291,8.80994492,139.13,139.12,8.34475012]
[1765550415716,7.88,139.14,139.12,15.53278922]
[1765550415873,7.88,139.14,139.13,8.34475012]
[1765550416803,7.88,139.14,139.13,15.53227258]
[1765550419084,7.18357294,139.21,139.13,33.50107873]
[1765550419284,16.68994492,139.2,139.19,7.67126299]
[1765550420501,16.68994492,139.2,139.18,0.7]
[1765550420688,8.80994492,139.19,139.15,13.0470912]
[1765550421002,23.87397658,139.2,139.18,14.85620335]
[1765550421003,7.88,139.2,139.18,14.85620335]
[1765550421298,7.88,139.2,139.19,7.67126299]
[1765550421900,7.88,139.2,139.18,7.88494036]
[1765550422195,7.88,139.2,139.19,8.37126299]
[1765550422397,7.88,139.2,139.19,15.55568715]
[1765550423903,7.88,139.2,139.19,8.37126299]
[1765550424292,7.88,139.2,139.19,15.55568715]
[1765550424492,7.88,139.2,139.19,8.37126299]
[1765550424686,7.88,139.2,139.19,7.67126299]
[1765550425131,7.88,139.2,139.18,7.67126299]
[1765550425132,8.80994492,139.19,139.18,7.67126299]
[1765550425290,0.28432314,139.18,139.16,7.67126299]
[1765550425490,16.68994492,139.17,139.16,7.67126299]
[1765550425724,8.80994492,139.16,139.1,0.7]
[1765550426014,0.28432314,139.15,139.13,7.67126299]
[1765550426219,8.80994492,139.13,139.12,7.67126299]
[1765550426794,8.80994492,139.13,139.09,7.18940843]
[1765550426795,16.68762746,139.13,139.09,7.18940843]
[1765550426994,8.80994492,139.13,139.11,7.67126299]
[1765550427224,8.80994492,139.11,139.05,18.678801]
[1765550427420,8.80994492,139.11,139.0,21.46961219]
[1765550427421,7.88,139.1,139.06,7.89114051]
[1765550427602,7.88,139.1,139.09,7.67126299]
[1765550428008,7.88,139.1,139.09,8.37126299]
[1765550429130,7.88,139.1,139.09,15.56085246]
[1765550429629,7.88,139.13,139.09,33.53482614]
[1765550429811,7.88,139.13,139.12,7.67126299]
[1765550430210,7.67126299,139.19,139.12,8.37126299]
[1765550430211,18.65127228,139.19,139.12,8.37126299]
[1765550430411,17.52210649,139.18,139.12,0.7]
[1765550430614,0.14216157,139.17,139.14,7.67126299]
[1765550430815,24.56505232,139.18,139.15,7.67126299]
[1765550431212,8.80994492,139.16,139.14,7.67126299]
[1765550431503,8.80994492,139.16,139.15,7.67126299]
[1765550431705,7.88,139.18,139.15,7.67126299]
[1765550431944,7.88,139.18,139.17,7.67126299]
[1765550432232,7.88,139.18,139.16,0.7]
[1765550432414,7.88,139.18,139.17,7.67126299]
[1765550433653,8.80994492,139.17,139.14,13.0470912]
[1765550433835,9.49994492,139.17,139.15,7.67126299]
[1765550434021,9.49994492,139.17,139.14,7.67126299]
[1765550434337,9.49994492,139.17,139.12,7.88786374]
[1765550434523,9.49994492,139.17,139.14,7.67126299]
[1765550434834,9.49994492,139.17,139.15,7.67126299]
[1765550435336,16.68585372,139.17,139.14,7.67126299]
[1765550435626,8.80994492,139.15,139.12,7.8879114]
[1765550435832,7.88,139.14,139.12,7.8879114]
[1765550436014,7.88,139.14,139.12,7.1879114]
[1765550436327,7.88,139.14,139.13,0.7]
[1765550436530,7.88,139.14,139.12,7.1879114]
[1765550436735,7.88,139.14,139.12,7.8879114]
[1765550437035,7.88,139.14,139.13,7.67126299]
[1765550437237,7.88,139.14,139.13,15.55878545]
[1765550438516,7.88,139.14,139.12,20.23496439]
[1765550438837,7.88,139.14,139.13,7.67126299]
[1765550439026,7.88,139.14,139.12,20.93496439]
[1765550439424,7.88,139.14,139.13,15.55878545]
[1765550440237,8.57,139.14,139.12,7.67126299]
[1765550440540,9.49994492,139.13,139.1,7.67126299]
[1765550441522,16.6876445,139.13,139.09,7.18939513]
[1765550441726,8.80994492,139.13,139.11,7.67126299]
[1765550441909,9.49994492,139.13,139.11,7.67126299]
[1765550442113,9.49994492,139.13,139.1,14.86028395]
[1765550442312,16.68753114,139.13,139.1,7.67126299]
[1765550442909,7.88,139.14,139.12,7.67126299]
[1765550443318,7.88,139.14,139.1,25.86172581]
[1765550443547,7.88,139.14,139.12,7.67126299]
[1765550445048,9.49994492,139.13,139.11,7.67126299]
[1765550445245,9.49994492,139.13,139.09,14.8607067]
[1765550445544,16.68758499,139.13,139.09,15.5607067]
[1765550445845,16.68758499,139.13,139.1,7.67126299]
[1765550446340,9.49994492,139.13,139.1,7.67126299]
[1765550446549,8.80994492,139.13,139.11,7.67126299]
[1765550447242,7.88,139.14,139.12,8.37126299]
[1765550447446,7.88,139.14,139.12,7.67126299]
[1765550447748,8.80994492,139.13,139.11,7.67126299]
[1765550447953,8.80994492,139.13,139.1,15.56014266]
[1765550448155,8.80994492,139.13,139.11,7.67126299]
[1765550448327,8.80994492,139.13,139.1,7.88887967]
[1765550448650,8.80994492,139.13,139.11,7.67126299]
[1765550450032,8.80994492,139.13,139.1,7.88887967]
[1765550450245,8.80994492,139.13,139.11,7.67126299]
[1765550450441,7.88,139.14,139.12,7.67126299]
[1765550450751,7.88,139.14,139.13,7.67126299]
[1765550451051,7.88,139.14,139.13,8.37126299]
[1765550451441,7.88,139.14,139.13,15.55878545]
[1765550452835,8.80994492,139.19,139.13,33.5275916]
[1765550453058,7.88,139.18,139.14,0.7]
[1765550453240,8.80994492,139.21,139.17,7.67126299]
[1765550453444,8.80994492,139.21,139.18,7.67126299]
[1765550453445,7.88,139.2,139.18,7.67126299]
[1765550453662,8.80994492,139.19,139.16,7.18589757]
[1765550453947,9.52994492,139.19,139.16,7.67126299]
[1765550454154,0.72,139.18,139.15,14.85740082]
[1765550454459,7.88,139.17,139.15,14.85740082]
[1765550455257,7.88,139.17,139.16,7.67126299]
[1765550455935,7.88,139.17,139.16,8.37126299]
[1765550456136,7.88,139.17,139.16,7.67126299]
[1765550456952,7.88,139.17,139.16,15.55723597]
[1765550457538,7.88,139.17,139.16,28.60432717]
[1765550457849,7.88,139.2,139.16,46.56925962]
[1765550458042,7.88,139.2,139.19,7.67126299]
[1765550458451,7.88,139.2,139.19,8.37126299]
[1765550458958,7.88,139.2,139.19,15.55229979]
[1765550460342,16.68994492,139.25,139.19,33.51336021]
[1765550460547,0.72,139.24,139.22,7.66787563]
[1765550461069,7.90202917,139.24,139.22,7.66787563]
[1765550461774,23.87144235,139.25,139.23,7.66787563]
[1765550461950,15.78149743,139.25,139.23,7.66787563]
[1765550462440,7.88,139.25,139.24,7.66787563]
[1765550462763,7.88,139.25,139.24,8.36787563]
[1765550463066,7.88,139.25,139.23,7.66787563]
[1765550463240,15.78132854,139.25,139.23,7.66787563]
[1765550463445,7.88,139.25,139.24,7.66787563]
[1765550463642,15.06132854,139.25,139.24,7.66787563]
[1765550464063,8.80994492,139.24,139.22,7.66787563]
[1765550464269,0.28432314,139.23,139.16,7.88580745]
[1765550464561,0.28432314,139.23,139.19,7.66787563]
[1765550464562,8.80994492,139.21,139.19,7.66787563]
[1765550465267,15.99356062,139.21,139.19,7.66787563]
[1765550465968,15.99356062,139.21,139.19,12.4643629]
[1765550466264,15.99356062,139.21,139.17,0.7]
[1765550466646,16.71356062,139.21,139.17,0.7]
[1765550467048,16.71356062,139.21,139.17,7.88535636]
[1765550467255,15.0630691,139.22,139.18,7.18493912]
[1765550467456,9.81426806,139.21,139.15,11.5670912]
[1765550467644,9.81426806,139.21,138.99,5.9383492]
[1765550467645,13.0470912,139.13,138.99,5.9383492]
[1765550467845,12.4643629,139.05,138.98,0.2]
[1765550468070,12.4643629,139.03,138.98,0.2]
[1765550468269,16.68994492,139.04,138.99,18.67614334]
[1765550468270,13.0470912,139.01,138.99,18.67614334]
[1765550468480,12.4643629,139.0,138.98,0.2]
[1765550468654,8.80994492,138.99,138.98,0.2]
[1765550468850,12.74868604,138.99,138.98,0.2]
[1765550469045,9.09426806,138.99,138.98,0.2]
[1765550469551,17.94994492,139.06,138.98,0.9]
[1765550469750,8.80994492,139.02,139.01,0.2]
[1765550470548,9.09426806,139.02,139.01,0.2]
[1765550471074,22.18863096,139.02,139.01,0.2]
[1765550471277,7.19786943,138.93,138.86,0.2]
[1765550471446,21.55863096,138.92,138.86,0.2]
[1765550471649,22.18863096,138.92,138.86,0.2]
[1765550472268,22.77135926,138.92,138.86,0.2]
[1765550472447,35.23572216,138.92,138.86,12.6643629]
[1765550472659,35.23572216,138.92,138.86,0.2]
[1765550473146,22.77135926,138.92,138.86,0.2]
[1765550473398,0.28432314,138.91,138.86,0.2]
[1765550473586,30.02135926,138.9,138.86,0.2]
[1765550474052,22.77135926,138.9,138.86,0.2]
[1765550474259,8.80994492,138.9,138.88,12.4643629]
[1765550474467,29.0552096,138.93,138.87,0.7]
[1765550474653,0.14216157,138.92,138.88,12.4643629]
[1765550474985,0.28432314,138.92,138.87,7.90086972]
[1765550475161,0.28432314,138.92,138.88,12.4643629]
[1765550475350,7.48274644,138.92,138.88,12.4643629]
[1765550475545,7.48274644,138.92,138.86,0.2]
[1765550475546,9.09426806,138.9,138.86,7.4014979]
[1765550475750,9.09426806,138.9,138.88,12.4643629]
[1765550475982,0.28432314,138.91,138.89,12.6643629]
[1765550476168,0.28432314,138.91,138.89,0.2]
[1765550476491,8.80994492,138.92,138.89,13.3643629]
[1765550476787,9.09426806,138.93,138.9,13.1643629]
[1765550477084,20.3443629,138.99,138.92,12.4643629]
[1765550477293,8.80994492,138.98,138.94,12.4643629]
[1765550477579,16.00522481,138.98,138.94,12.4643629]
[1765550477749,0.28432314,138.97,138.92,7.89837776]
[1765550477948,0.28432314,138.97,138.93,20.36221242]
[1765550478284,16.63522481,138.98,138.93,20.36221242]
[1765550478586,8.80994492,139.0,138.95,12.4643629]
[1765550478887,8.80994492,139.0,138.96,12.4643629]
[1765550479072,0.28432314,138.99,138.96,12.4643629]
[1765550479250,0.28432314,138.99,138.97,0.69]
[1765550479449,8.80994492,139.0,138.96,13.1543629]
[1765550480051,8.80994492,139.0,138.96,20.35049674]
[1765550480650,8.80994492,139.0,138.97,13.1543629]
[1765550480975,12.4643629,139.0,138.95,20.3443629]
[1765550481205,8.80994492,139.01,138.97,12.4643629]
[1765550481374,20.3443629,139.03,138.98,12.4643629]
[1765550481375,21.27430782,139.03,138.98,12.4643629]
[1765550481561,8.80994492,139.03,138.98,12.4643629]
[1765550481762,8.80994492,139.03,138.99,12.4643629]
[1765550481963,16.00265834,139.03,138.99,12.4643629]
[1765550482290,0.28432314,139.02,138.98,19.6596102]
[1765550482466,0.14216157,139.02,138.98,20.3496102]
[1765550482654,0.14216157,139.03,139.0,12.4643629]
[1765550482858,0.28432314,139.03,139.0,12.4643629]
[1765550483071,8.80994492,139.04,139.01,0.69]
[1765550483264,8.80994492,139.04,139.0,13.1543629]
[1765550483474,8.80994492,139.07,139.02,12.4643629]
[1765550483654,19.65470093,139.08,139.03,21.0343629]
[1765550483854,12.4643629,139.06,139.03,7.88]
[1765550484175,8.80994492,139.05,139.02,7.88]
[1765550484378,0.14216157,139.04,139.02,7.88]
[1765550484551,7.18940464,139.1,139.03,13.1543629]
[1765550484752,13.0943629,139.11,139.06,12.4643629]
[1765550484959,13.6770912,139.11,139.04,0.69]
[1765550485160,8.80994492,139.1,139.04,0.69]
[1765550485377,7.18700589,139.14,139.08,12.4643629]
[1765550485564,19.65209793,139.13,139.08,13.1543629]
[1765550485777,8.51,139.15,139.1,12.4643629]
[1765550485778,7.18711429,139.14,139.1,12.4643629]
[1765550486009,20.3443629,139.15,139.09,0.69]
[1765550486010,7.18680784,139.15,139.09,0.69]
[1765550486290,8.80994492,139.14,139.11,12.4643629]
[1765550486894,20.23309825,139.16,139.11,13.1543629]
[1765550487091,7.18548526,139.17,139.13,12.4643629]
[1765550487405,7.18548526,139.17,139.12,0.69]
[1765550487406,8.80994492,139.17,139.12,0.69]
[1765550487564,15.99540347,139.17,139.13,12.4643629]
[1765550487868,28.45976637,139.17,139.11,20.3443629]
[1765550488066,12.4643629,139.16,139.11,20.3443629]
[1765550488371,0.14216157,139.16,139.12,19.65228338]
[1765550488578,15.99540347,139.17,139.13,12.4643629]
[1765550488762,7.88,139.2,139.13,12.4643629]
[1765550488763,12.4643629,139.21,139.16,12.4643629]
[1765550488965,7.18287602,139.22,139.17,12.4643629]
[1765550489164,32.69433012,139.22,139.17,12.4643629]
[1765550489396,8.80994492,139.21,139.18,0.69]
[1765550489776,8.80994492,139.22,139.18,0.69]
[1765550490087,21.27430782,139.22,139.18,0.69]
[1765550490993,15.99293829,139.22,139.18,0.69]
[1765550491374,28.45730119,139.22,139.18,0.69]
[1765550491877,28.45730119,139.22,139.19,7.88]
[1765550492800,15.99293829,139.22,139.19,7.88]
[1765550493383,8.80994492,139.22,139.19,15.75438432]
[1765550493687,0.28432314,139.23,139.2,0.69]
[1765550493889,0.28432314,139.23,139.19,7.88]
[1765550494090,0.28432314,139.23,139.19,8.57]
[1765550494896,0.28432314,139.23,139.19,21.0343629]
[1765550495103,9.09426806,139.23,139.19,21.0343629]
[1765550495518,28.74135592,139.23,139.14,17.96742324]
[1765550495678,9.09426806,139.21,139.17,19.6497046]
[1765550496003,28.73841269,139.28,139.2,12.4643629]
[1765550496225,0.28432314,139.23,139.21,7.88]
[1765550497886,7.18133064,139.25,139.21,7.88]
[1765550498081,8.80994492,139.24,139.22,0.69]
[1765550498313,7.32309599,139.26,139.22,0.69]
[1765550498612,8.80994492,139.26,139.24,12.4643629]
[1765550498785,13.0470912,139.29,139.24,12.4643629]
[1765550498786,0.28432314,139.27,139.24,20.3443629]
[1765550499002,12.4643629,139.26,139.2,0.69]
[1765550499300,0.28432314,139.24,139.21,20.3443629]
[1765550499488,0.28432314,139.24,139.21,20.34002262]
[1765550499795,0.28432314,139.24,139.21,21.03002262]
[1765550500011,7.18156617,139.25,139.22,0.69]
[1765550500383,8.80994492,139.27,139.24,12.46002262]
[1765550500602,8.80994492,139.27,139.24,20.34002262]
[1765550500811,0.91432314,139.26,139.24,7.88]
[1765550500976,9.09426806,139.25,139.24,7.88]
[1765550501313,0.28432314,139.24,139.22,7.88]
[1765550501808,0.28432314,139.24,139.21,7.88]
[1765550501809,8.80994492,139.23,139.21,7.88]
[1765550502194,0.14216157,139.28,139.22,13.15002262]
[1765550502395,8.80994492,139.28,139.22,0.69]
[1765550502589,0.28432314,139.27,139.24,12.46002262]
[1765550502898,0.28432314,139.27,139.23,8.57]
[1765550503097,8.80994492,139.28,139.24,12.46002262]
[1765550503306,8.80994492,139.28,139.24,13.15002262]
[1765550503497,8.80994492,139.29,139.26,12.46002262]
[1765550503699,8.80994492,139.3,139.26,27.50047929]
[1765550503882,8.80994492,139.3,139.26,20.32002262]
[1765550504088,21.89996754,139.3,139.26,7.86]
[1765550504292,21.26996754,139.3,139.25,12.46002262]
[1765550504487,21.26996754,139.3,139.25,0.69]
[1765550504488,8.80994492,139.28,139.25,0.69]
[1765550504684,8.80994492,139.28,139.23,12.46002262]
[1765550504685,12.46002262,139.28,139.23,12.46002262]
[1765550505013,8.80994492,139.27,139.24,7.86]
[1765550505233,8.80994492,139.24,139.16,0.69]
[1765550505379,8.80994492,139.24,139.17,12.46002262]
[1765550505582,9.09426806,139.21,139.17,19.64533438]
[1765550505878,16.27776578,139.21,139.17,0.69]
[1765550506195,12.46002262,139.2,139.17,7.86]
[1765550506395,8.80994492,139.18,139.15,0.69]
[1765550506597,8.80994492,139.18,139.16,7.86]
[1765550506803,12.74434576,139.19,139.16,7.86]
[1765550506804,0.28432314,139.19,139.16,8.55]
[1765550507394,12.74434576,139.19,139.16,8.55]
[1765550507693,12.74434576,139.19,139.16,15.0459639]
[1765550507694,0.28432314,139.19,139.16,15.0459639]
[1765550507895,7.46893102,139.19,139.16,8.55]
[1765550508098,7.46893102,139.19,139.16,7.86]
[1765550508400,8.80994492,139.18,139.16,7.86]
[1765550508610,8.80994492,139.18,139.14,7.87665775]
[1765550508788,12.46002262,139.16,139.11,7.18838768]
[1765550508981,13.09002262,139.16,139.11,15.73838768]
[1765550509181,9.09426806,139.16,139.12,7.87798717]
[1765550509688,9.09426806,139.16,139.13,7.18747296]
[1765550509895,9.09426806,139.16,139.12,0.69]
[1765550510411,15.06450149,139.19,139.12,7.87782588]
[1765550510617,0.28432314,139.19,139.14,12.46002262]
[1765550510792,12.46002262,139.19,139.14,7.86]
[1765550510996,8.80994492,139.18,139.14,7.86]
[1765550511239,21.89996754,139.18,139.14,7.86]
[1765550511413,21.26996754,139.18,139.14,7.86]
[1765550511595,21.26996754,139.18,139.14,8.54]
[1765550511798,8.80994492,139.18,139.15,7.86648939]
[1765550512610,8.80994492,139.18,139.16,0.68]
[1765550513398,0.63,139.17,139.14,7.18698952]
[1765550513618,8.80994492,139.16,139.13,7.18737757]
[1765550513927,21.26996754,139.16,139.12,7.86787996]
[1765550514221,8.80994492,139.17,139.13,13.14002262]
[1765550514602,29.14996754,139.18,139.14,0.68]
[1765550514799,20.62434576,139.2,139.14,13.14002262]
[1765550515017,8.80994492,139.2,139.15,12.46002262]
[1765550515318,8.80994492,139.2,139.15,0.68]
[1765550515514,21.26996754,139.24,139.16,0.68]
[1765550515720,9.09426806,139.18,139.14,7.18700589]
[1765550516234,9.09426806,139.18,139.15,0.68]
[1765550516894,28.45400521,139.2,139.15,0.68]
[1765550517099,8.80994492,139.2,139.17,12.46002262]
[1765550517322,8.80994492,139.21,139.17,12.46002262]
[1765550517515,8.80994492,139.21,139.18,0.68]
[1765550517720,12.60218419,139.23,139.2,7.18390804]
[1765550517721,8.80994492,139.23,139.2,7.18390804]
[1765550517899,8.80994492,139.23,139.19,19.64438249]
[1765550518224,8.80994492,139.23,139.19,20.32438249]
[1765550518427,8.80994492,139.23,139.19,7.86435987]
[1765550519224,15.99235283,139.23,139.19,7.86435987]
[1765550519798,8.80994492,139.21,139.17,20.32502896]
[1765550520010,8.80994492,139.21,139.17,13.14002262]
[1765550520305,9.09426806,139.22,139.18,0.68]
[1765550520628,7.88,139.24,139.19,19.64431286]
[1765550520797,8.80994492,139.27,139.22,12.46002262]
[1765550520998,27.51980435,139.28,139.21,12.46002262]
[1765550521199,12.46002262,139.27,139.21,12.46002262]
[1765550521509,21.55429068,139.26,139.21,0.68]
[1765550521703,28.59323394,139.26,139.21,7.863075]
[1765550521926,0.63,139.25,139.2,19.64385888]
[1765550522222,8.80994492,139.24,139.21,7.18337063]
[1765550522423,8.95210649,139.25,139.21,7.18337063]
[1765550522654,0.14216157,139.25,139.22,0.68]
[1765550523042,0.14216157,139.25,139.17,13.0470912]
[1765550523351,0.28432314,139.21,139.17,7.86510641]
[1765550524344,0.28432314,139.21,139.18,0.68]
[1765550524546,9.43994492,139.2,139.16,13.0470912]
[1765550524728,8.80994492,139.2,139.16,13.0470912]
[1765550525048,8.80994492,139.2,139.16,13.7270912]
[1765550525255,0.28432314,139.21,139.17,7.86529706]
[1765550525433,9.09426806,139.21,139.17,7.86529706]
[1765550526448,28.73797532,139.21,139.17,7.18529706]
[1765550526661,9.09426806,139.19,139.16,7.18552389]
[1765550526961,9.09426806,139.19,139.13,38.87548482]
[1765550526962,9.09426806,139.17,139.14,7.18659609]
[1765550527251,8.80994492,139.18,139.14,0.68]
[1765550527546,29.14996754,139.19,139.14,0.68]
[1765550527751,29.77996754,139.19,139.14,0.68]
[1765550527922,24.99550983,139.19,139.14,0.68]
[1765550528122,9.09426806,139.18,139.14,0.68]
[1765550528432,9.09426806,139.18,139.14,25.834396]
[1765550528643,8.80994492,139.18,139.14,33.50996091]
[1765550528828,7.88,139.19,139.15,0.68]
[1765550529028,16.68994492,139.19,139.15,0.68]
[1765550530125,9.09426806,139.18,139.15,7.18629401]
[1765550530321,9.09426806,139.18,139.13,0.68]
[1765550530634,9.09426806,139.18,139.14,7.18668926]
[1765550530839,17.39983297,139.18,139.13,0.68]
[1765550531367,9.09426806,139.18,139.15,7.18641161]
[1765550531672,9.09426806,139.18,139.15,25.1526351]
[1765550531963,9.09426806,139.18,139.16,0.68]
[1765550531964,8.80994492,139.18,139.16,0.68]
[1765550532255,8.80994492,139.18,139.16,7.86559324]
[1765550532441,8.80994492,139.18,139.16,7.18559324]
[1765550533161,8.80994492,139.18,139.14,8.35556491]
[1765550533162,8.80994492,139.18,139.15,7.18631271]
[1765550533345,8.80994492,139.18,139.14,0.68]
[1765550533346,0.91432314,139.17,139.14,7.18681569]
[1765550533649,7.95988805,139.17,139.13,7.18736394]
[1765550533838,8.58988805,139.17,139.12,7.86787412]
[1765550534044,0.91432314,139.17,139.13,7.18751628]
[1765550534230,8.58988805,139.17,139.13,7.18751628]
[1765550534429,8.80994492,139.16,139.13,0.68]
[1765550534750,8.80994492,139.14,139.11,7.18817043]
[1765550535055,9.09426806,139.15,139.12,7.18789586]
[1765550535624,17.39983297,139.15,139.11,7.18848597]
[1765550535828,16.76983297,139.15,139.12,7.18797166]
[1765550536045,16.76983297,139.15,139.11,0.68]
[1765550536046,16.76983297,139.15,139.11,7.86837226]
[1765550536239,17.39983297,139.15,139.11,7.18837226]
[1765550536657,16.76983297,139.15,139.11,0.68]
[1765550536958,9.09426806,139.15,139.11,0.68]
[1765550537158,8.80994492,139.14,139.11,0.68]
[1765550537533,8.80994492,139.14,139.1,25.16175412]
[1765550537762,0.28432314,139.13,139.1,7.1890726]
[1765550538163,0.28432314,139.13,139.1,7.8690726]
[1765550538334,0.28432314,139.13,139.11,0.67]
[1765550538533,8.80994492,139.15,139.11,0.67]
[1765550538847,8.80994492,139.15,139.12,7.1880391]
[1765550539356,8.80994492,139.15,139.13,0.67]
[1765550539659,8.80994492,139.15,139.12,25.81813685]
[1765550540078,8.80994492,139.17,139.13,0.66]
[1765550540249,9.09426806,139.17,139.13,0.66]
[1765550540866,9.09426806,139.17,139.14,7.18700589]
[1765550541233,8.95210649,139.17,139.14,7.84700589]
[1765550541736,8.95210649,139.17,139.14,7.18700589]
[1765550541934,8.80994492,139.17,139.14,7.84700589]
[1765550542363,8.80994492,139.17,139.15,0.66]
[1765550542663,8.80994492,139.17,139.15,7.84614644]